bitfinex-derivatives/quotes_SOLF0:USTF0_20220108
["timestamp","ask_amount","ask_price","bid_price","bid_amount"]
[1641632186663,14.55868849,145.67,145.62,4.0]
[1641632186863,24.77868849,145.67,145.62,11.391]
[1641632187064,38.45014662,145.7,145.65,4.0]
[1641632187263,38.45014662,145.7,145.65,9.413]
[1641632187665,10.4,145.75,145.65,9.413]
[1641632188264,10.4,145.75,145.66,4.0]
[1641632188464,10.4,145.75,145.68,27.66479]
[1641632188664,38.45014662,145.76,145.68,34.34379]
[1641632188865,48.67014662,145.76,145.68,34.34379]
[1641632189564,48.67014662,145.76,145.68,38.34379]
[1641632189765,10.22,145.76,145.68,38.34379]
[1641632190566,10.22,145.76,145.71,27.66479]
[1641632193870,14.22,145.76,145.68,27.66479]
[1641632194071,39.594,145.76,145.68,27.66479]
[1641632194270,4.0,145.75,145.63,62.6739]
[1641632194673,27.66479,145.71,145.63,90.33869]
[1641632194873,33.55979,145.71,145.63,90.33869]
[1641632195574,33.55979,145.71,145.63,27.66479]
[1641632198479,37.55979,145.71,145.63,27.66479]
[1641632198679,33.55979,145.71,145.63,27.66479]
[1641632200082,24.0,145.7,145.63,27.66479]
[1641632203387,4.0,145.69,145.59,6.85847536]
[1641632203587,29.49090292,145.7,145.58,68.8689]
[1641632204087,25.49090292,145.7,145.59,1.6835573]
[1641632204289,4.0,145.69,145.59,1.6835573]
[1641632204688,4.0,145.69,145.59,29.3483473]
[1641632204888,29.49090292,145.7,145.59,29.3483473]
[1641632205589,25.49090292,145.7,145.59,33.3483473]
[1641632205790,37.86479,145.71,145.59,33.3483473]
[1641632205991,37.86479,145.71,145.6,1.6835573]
[1641632206290,27.66479,145.73,145.63,10.8568294]
[1641632206491,66.178,145.74,145.63,19.5048294]
[1641632206695,66.178,145.74,145.68,27.66479]
[1641632206893,10.22,145.76,145.68,36.06479]
[1641632208793,10.22,145.76,145.69,1.68465954]
[1641632210702,10.22,145.76,145.68,27.66479]
[1641632210895,17.637,145.76,145.68,27.66479]
[1641632212395,3.15463915,145.75,145.68,27.66479]
[1641632212996,27.66479,145.74,145.68,27.66479]
[1641632213598,27.66479,145.74,145.65,27.66479]
[1641632215299,51.66479,145.74,145.65,27.66479]
[1641632216003,3.16042659,145.73,145.65,27.66479]
[1641632216201,11.61742659,145.73,145.65,27.66479]
[1641632216401,11.61742659,145.73,145.63,27.66479]
[1641632216801,7.16042659,145.72,145.63,27.66479]
[1641632217002,27.66479,145.71,145.63,27.66479]
[1641632217802,4.0,145.64,145.57,25.99941617]
[1641632218002,24.0,145.63,145.57,18.27941617]
[1641632218304,24.0,145.63,145.53,57.64993962]
[1641632218305,20.0,145.63,145.53,47.64993962]
[1641632218504,20.0,145.63,145.51,137.36987598]
[1641632218704,20.0,145.63,145.51,69.14807598]
[1641632219008,27.66479,145.55,145.51,69.14807598]
[1641632219206,8.182,145.55,145.51,6.86247598]
[1641632219407,8.182,145.55,145.52,7.72259361]
[1641632220206,8.182,145.55,145.51,14.58506959]
[1641632223610,8.182,145.55,145.51,18.58506959]
[1641632224312,7.945,145.55,145.51,14.58506959]
[1641632224512,7.945,145.55,145.51,7.72259361]
[1641632225113,35.60979,145.55,145.51,7.72259361]
[1641632226618,35.60979,145.55,145.48,14.58648269]
[1641632229120,7.945,145.55,145.48,14.58648269]
[1641632229420,27.66479,145.57,145.48,14.58648269]
[1641632229619,27.66479,145.57,145.48,18.58648269]
[1641632230221,27.66479,145.59,145.48,18.58648269]
[1641632230622,27.66479,145.59,145.48,11.72259361]
[1641632230824,27.66479,145.59,145.51,6.86247598]
[1641632231023,10.48,145.6,145.52,27.66479]
[1641632232223,27.66479,145.62,145.52,27.66479]
[1641632233225,27.66479,145.59,145.52,27.66479]
[1641632233425,33.57579,145.59,145.52,27.66479]
[1641632233825,33.57579,145.59,145.53,1.67284469]
[1641632234629,25.77774178,145.59,145.53,1.67284469]
[1641632237130,5.911,145.59,145.53,1.67284469]
[1641632237331,27.66479,145.62,145.53,1.67284469]
[1641632238133,27.66479,145.62,145.53,7.82784469]
[1641632239337,27.66479,145.62,145.54,1.67284469]
[1641632240038,27.66479,145.62,145.53,1.67284469]
[1641632241540,31.66479,145.62,145.53,1.67284469]
[1641632241741,27.66479,145.62,145.53,1.67284469]
[1641632243539,33.36779,145.62,145.53,1.67284469]
[1641632244140,37.36779,145.62,145.53,1.67284469]
[1641632244342,4.0,145.61,145.53,1.67284469]
[1641632245242,27.66479,145.56,145.53,1.67284469]
[1641632245844,27.66479,145.56,145.54,4.85078883]
[1641632247443,27.66479,145.56,145.5,9.38949521]
[1641632247642,27.66479,145.56,145.5,60.33618296]
[1641632248745,27.66479,145.56,145.53,14.59470392]
[1641632249944,27.66479,145.56,145.54,4.0]
[1641632250144,4.85078883,145.59,145.53,14.59470392]
[1641632250145,4.85078883,145.59,145.53,24.32970392]
[1641632250549,8.883e-05,145.59,145.55,6.86035742]
[1641632250743,8.883e-05,145.59,145.55,10.86035742]
[1641632250945,8.883e-05,145.59,145.56,4.0]
[1641632251145,64.483,145.66,145.57,27.66479]
[1641632251546,74.923,145.66,145.57,27.66479]
[1641632251947,10.44,145.66,145.58,1.67284469]
[1641632252147,27.66479,145.67,145.59,14.57966032]
[1641632252347,42.25949392,145.69,145.59,22.56666032]
[1641632252549,14.59470392,145.69,145.63,4.0]
[1641632252748,14.59470392,145.69,145.63,10.453]
[1641632252947,14.59470392,145.72,145.63,10.453]
[1641632253149,14.59470392,145.72,145.63,6.453]
[1641632253447,14.59470392,145.72,145.69,27.66479]
[1641632254049,48.65126813,145.75,145.69,27.66479]
[1641632254250,10.06,145.75,145.69,27.66479]
[1641632256248,3.16683486,145.74,145.69,27.66479]
[1641632257253,10.06,145.75,145.69,27.66479]
[1641632258653,10.06,145.75,145.66,42.24445032]
[1641632258854,18.071,145.75,145.66,42.24445032]
[1641632260154,3.16644785,145.74,145.67,1.68347864]
[1641632261356,30.83123785,145.74,145.67,1.68347864]
[1641632262558,27.66479,145.74,145.67,5.68347864]
[1641632263158,10.06,145.75,145.67,5.68347864]
[1641632263359,10.06,145.75,145.68,1.68347864]
[1641632264361,10.06,145.75,145.66,31.66479]
[1641632264559,3.16532653,145.74,145.67,4.0]
[1641632264761,3.16532653,145.74,145.66,31.66479]
[1641632264962,3.16532653,145.74,145.67,4.0]
[1641632265361,37.72479,145.75,145.67,5.68247974]
[1641632266064,37.72479,145.75,145.68,1.68247974]
[1641632268666,37.72479,145.75,145.67,4.0]
[1641632276275,44.04579,145.75,145.67,4.0]
[1641632280281,44.04579,145.75,145.68,1.68041849]
[1641632283186,3.17849425,145.74,145.68,16.26007881]
[1641632285991,3.17849425,145.74,145.69,14.57966032]
[1641632287592,3.17849425,145.74,145.7,14.57966032]
[1641632287992,3.17849425,145.74,145.7,18.57966032]
[1641632288193,3.17849425,145.74,145.7,14.57966032]
[1641632288395,10.06,145.75,145.7,14.57966032]
[1641632289997,10.06,145.75,145.71,14.57966032]
[1641632290798,10.06,145.75,145.7,24.01281794]
[1641632292601,10.06,145.75,145.7,1.68041849]
[1641632293401,3.17494557,145.74,145.7,1.68041849]
[1641632296001,10.06,145.75,145.69,27.66479]
[1641632296900,3.17521906,145.74,145.7,1.68863171]
[1641632297101,9.09321906,145.74,145.7,1.68863171]
[1641632297700,5.918,145.74,145.69,27.66479]
[1641632298302,5.918,145.74,145.68,14.57966032]
[1641632299102,4.0,145.73,145.68,14.57966032]
[1641632299306,7.17545293,145.73,145.67,24.01387737]
[1641632299703,27.66479,145.69,145.67,24.01387737]
[1641632299904,34.75379,145.69,145.67,24.01387737]
[1641632300208,34.75379,145.69,145.62,14.57966032]
[1641632301607,34.75379,145.69,145.63,14.57966032]
[1641632301811,26.95993006,145.69,145.63,14.57966032]
[1641632302108,19.87093006,145.69,145.63,14.57966032]
[1641632303707,19.87093006,145.69,145.63,42.24445032]
[1641632303907,83.17400392,145.73,145.63,42.24445032]
[1641632304108,83.17400392,145.73,145.64,14.57966032]
[1641632304710,3.17201504,145.72,145.64,1.68859579]
[1641632305709,30.83680504,145.72,145.64,1.68859579]
[1641632306511,3.17201504,145.71,145.64,1.68859579]
[1641632306710,11.12101504,145.71,145.64,1.68859579]
[1641632307111,7.949,145.71,145.64,1.68859579]
[1641632309413,4.0,145.69,145.54,62.01379441]
[1641632309613,4.0,145.69,145.54,122.50269441]
[1641632309614,27.66479,145.59,145.54,122.50269441]
[1641632309813,33.49379,145.59,145.54,58.01379441]
[1641632310513,33.49379,145.59,145.53,10.8608281]
[1641632311614,33.49379,145.59,145.58,4.84624242]
[1641632313618,33.49379,145.59,145.57,4.84624242]
[1641632313818,27.66479,145.59,145.57,4.84624242]
[1641632315220,27.66479,145.59,145.56,4.84624242]
[1641632316123,27.66479,145.59,145.58,4.84624242]
[1641632316922,27.66479,145.59,145.57,4.84624242]
[1641632318323,37.84479,145.64,145.57,4.84624242]
[1641632318620,27.66479,145.64,145.58,4.84624242]
[1641632319220,27.66479,145.64,145.57,10.946]
[1641632319221,10.14,145.66,145.6,4.84624242]
[1641632319621,10.14,145.66,145.6,12.69124242]
[1641632322127,10.14,145.66,145.61,4.84624242]
[1641632322928,10.14,145.66,145.58,4.84624242]
[1641632323828,27.66479,145.63,145.58,4.84624242]
[1641632324029,27.66479,145.63,145.57,32.51103242]
[1641632327232,27.66479,145.63,145.58,4.84624242]
[1641632328632,14.98624242,145.66,145.58,4.84624242]
[1641632328833,14.98624242,145.66,145.58,11.78024242]
[1641632329136,4.84624242,145.65,145.59,4.84624242]
[1641632329835,27.66479,145.63,145.59,4.84624242]
[1641632331437,14.98624242,145.66,145.59,4.84624242]
[1641632331639,4.84624242,145.66,145.59,13.37124242]
[1641632331837,38.79361848,145.72,145.65,55.32958]
[1641632332038,38.79361848,145.72,145.65,62.19458]
[1641632332440,38.79361848,145.72,145.65,66.19458]
[1641632332640,10.06,145.75,145.65,66.19458]
[1641632333838,10.06,145.75,145.65,62.19458]
[1641632334042,10.06,145.75,145.66,7.70905105]
[1641632334440,14.06,145.75,145.66,7.70905105]
[1641632334840,4.0,145.71,145.66,7.70905105]
[1641632335040,7.109,145.71,145.66,7.70905105]
[1641632335240,7.109,145.71,145.62,67.2005]
[1641632335942,27.66479,145.7,145.62,67.2005]
[1641632336444,27.66479,145.7,145.62,71.2005]
[1641632342249,27.66479,145.7,145.63,4.0]
[1641632343955,27.66479,145.7,145.62,67.2005]
[1641632344154,31.66479,145.7,145.62,67.2005]
[1641632344956,4.0,145.69,145.62,67.2005]
[1641632345158,11.497,145.69,145.62,67.2005]
[1641632345857,11.497,145.69,145.59,27.66479]
[1641632346060,27.66479,145.65,145.59,82.82153304]
[1641632346257,34.32779,145.65,145.59,82.82153304]
[1641632347160,34.32779,145.65,145.59,68.2945]
[1641632348162,61.99258,145.65,145.59,68.2945]
[1641632349564,61.99258,145.65,145.6,1.67691506]
[1641632350666,4.0,145.63,145.57,13.2039481]
[1641632351066,20.0,145.64,145.57,13.2039481]
[1641632351067,24.0,145.64,145.57,13.2039481]
[1641632351269,24.0,145.64,145.51,107.07461848]
[1641632351969,4.0,145.63,145.51,107.07461848]
[1641632352170,27.66479,145.59,145.51,107.07461848]
[1641632352373,34.15779,145.59,145.52,7.70084668]
[1641632353472,34.15779,145.59,145.51,68.281]
[1641632354071,61.82258,145.59,145.51,68.281]
[1641632354572,61.82258,145.59,145.52,7.69715158]
[1641632354974,61.82258,145.59,145.52,11.69715158]
[1641632355274,61.82258,145.59,145.52,7.69715158]
[1641632355475,61.82258,145.59,145.52,11.69715158]
[1641632355675,6.493,145.59,145.52,11.69715158]
[1641632355876,65.3859,145.62,145.52,11.69715158]
[1641632356278,93.05069,145.62,145.53,27.66479]
[1641632357176,93.05069,145.62,145.54,7.69715158]
[1641632359580,93.05069,145.62,145.52,7.69715158]
[1641632360181,93.05069,145.62,145.52,35.36194158]
[1641632361180,93.05069,145.62,145.53,7.69715158]
[1641632362281,19.86742628,145.59,145.53,7.69715158]
[1641632365392,27.92642628,145.59,145.53,7.69715158]
[1641632367691,8.059,145.59,145.54,4.0]
[1641632367893,10.36,145.65,145.58,4.0]
[1641632368091,4.0,145.66,145.58,7.875]
[1641632368292,27.66479,145.65,145.58,7.875]
[1641632368492,34.21579,145.65,145.58,7.875]
[1641632368692,4.0,145.63,145.58,7.875]
[1641632368898,4.0,145.63,145.53,65.64155422]
[1641632369093,66.5806,145.64,145.53,65.64155422]
[1641632369293,62.5806,145.64,145.53,65.64155422]
[1641632369493,62.5806,145.64,145.53,45.65421124]
[1641632370195,27.66479,145.62,145.53,45.65421124]
[1641632370397,33.25279,145.62,145.53,53.35509984]
[1641632372496,33.25279,145.62,145.54,38.79361848]
[1641632373298,33.25279,145.62,145.55,38.79361848]
[1641632374700,27.66479,145.62,145.55,38.79361848]
[1641632377203,27.66479,145.62,145.54,38.79361848]
[1641632378703,27.66479,145.62,145.54,42.79361848]
[1641632378903,27.66479,145.62,145.56,4.0]
[1641632379103,27.66479,145.65,145.57,4.0]
[1641632379304,27.66479,145.65,145.56,11.54]
[1641632379503,10.12,145.66,145.56,11.54]
[1641632380103,80.28837257,145.7,145.59,4.0]
[1641632380303,27.66479,145.68,145.59,37.81379]
[1641632380506,27.66479,145.68,145.59,33.81379]
[1641632381207,33.05479,145.68,145.59,33.81379]
[1641632381405,33.05479,145.68,145.61,14.57744199]
[1641632384610,37.05479,145.68,145.61,14.57744199]
[1641632385309,33.05479,145.68,145.61,14.57744199]
[1641632385610,37.05479,145.68,145.6,22.27833059]
[1641632385809,33.05479,145.68,145.6,22.27833059]
[1641632386412,37.05479,145.68,145.6,22.27833059]
[1641632388314,27.66479,145.64,145.6,22.27833059]
[1641632388513,34.03479,145.64,145.6,14.57744199]
[1641632388714,34.03479,145.64,145.59,82.87284199]
[1641632389115,34.03479,145.64,145.59,14.57744199]
[1641632390114,34.03479,145.64,145.6,14.57744199]
[1641632390313,27.66479,145.61,145.6,14.57744199]
[1641632390514,34.74279,145.61,145.6,14.57744199]
[1641632391215,34.74279,145.61,145.58,23.97873942]
[1641632391415,34.03479,145.64,145.58,23.97873942]
[1641632391614,7.739,145.61,145.58,23.97873942]
[1641632392318,7.739,145.61,145.57,16.25811124]
[1641632392516,7.739,145.61,145.59,27.66479]
[1641632393517,7.739,145.61,145.6,1.68066925]
[1641632395018,7.739,145.61,145.58,14.57744199]
[1641632395217,7.739,145.61,145.56,14.57744199]
[1641632396319,12.59729015,145.61,145.55,1.68108304]
[1641632398519,4.85829015,145.61,145.57,27.66479]
[1641632398920,66.8551,145.63,145.59,14.57744199]
[1641632399120,10.14,145.64,145.59,14.57744199]
[1641632400023,10.14,145.64,145.58,22.29807772]
[1641632401421,4.0,145.61,145.58,22.29807772]
[1641632402121,10.14,145.64,145.58,22.29807772]
[1641632402321,4.85829015,145.65,145.58,14.57744199]
[1641632402521,4.85829015,145.65,145.62,27.66479]
[1641632403323,10.24,145.66,145.62,42.24223199]
[1641632403521,14.24,145.66,145.62,42.24223199]
[1641632403822,10.24,145.66,145.62,34.57583199]
[1641632404022,10.24,145.66,145.62,14.57744199]
[1641632404422,14.24,145.66,145.62,14.57744199]
[1641632404823,10.24,145.66,145.59,53.37106047]
[1641632405022,10.24,145.66,145.59,14.57744199]
[1641632405622,10.24,145.66,145.59,18.57744199]
[1641632405823,32.52308015,145.67,145.59,18.57744199]
[1641632406024,32.52308015,145.67,145.6,18.57744199]
[1641632406425,32.52308015,145.67,145.6,14.57744199]
[1641632406624,32.52308015,145.67,145.61,27.66479]
[1641632407226,27.66479,145.67,145.62,14.57744199]
[1641632407727,27.66479,145.67,145.62,18.57744199]
[1641632408027,4.85829015,145.69,145.62,25.43380126]
[1641632408226,4.85829015,145.69,145.64,4.0]
[1641632408426,4.85829015,145.71,145.65,15.70671558]
[1641632408626,4.85829015,145.71,145.68,27.66479]
[1641632409425,19.43573214,145.74,145.68,32.51632135]
[1641632409627,4.85829015,145.74,145.68,32.51632135]
[1641632410627,75.4925,145.75,145.68,32.51632135]
[1641632410827,4.85829015,145.76,145.68,36.51632135]
[1641632411027,4.85829015,145.76,145.7,4.0]
[1641632411227,4.85829015,145.76,145.7,9.477]
[1641632411428,4.85829015,145.76,145.7,5.477]
[1641632411627,4.85829015,145.77,145.73,4.0]
[1641632411827,4.85829015,145.77,145.73,11.27]
[1641632412027,14.57744199,145.8,145.76,4.0]
[1641632412227,14.57744199,145.8,145.76,7.135]
[1641632412428,14.57744199,145.8,145.76,11.135]
[1641632412628,14.57744199,145.8,145.79,55.32958]
[1641632412830,14.57744199,145.8,145.79,64.03458]
[1641632413231,14.57744199,145.88,145.79,64.03458]
[1641632414430,81.1541,145.89,145.79,64.03458]
[1641632414829,81.1541,145.89,145.82,27.66479]
[1641632415030,4.0,145.87,145.82,33.04379]
[1641632415232,14.36,145.89,145.82,33.04379]
[1641632415431,21.42793009,145.91,145.82,33.04379]
[1641632415632,17.0704881,145.91,145.82,33.04379]
[1641632416032,21.0704881,145.91,145.82,33.04379]
[1641632416235,6.8504881,145.91,145.82,33.04379]
[1641632416434,27.66479,145.92,145.82,33.04379]
[1641632416635,31.66479,145.92,145.82,33.04379]
[1641632416935,42.12479,145.92,145.82,33.04379]
[1641632417135,3.89338428,145.91,145.82,33.04379]
[1641632417334,7.89338428,145.91,145.82,33.04379]
[1641632417936,4.0,145.9,145.82,27.66479]
[1641632418134,4.0,145.91,145.82,27.66479]
[1641632418834,4.0,145.9,145.82,27.66479]
[1641632419034,4.0,145.86,145.82,27.66479]
[1641632419235,11.592,145.88,145.82,27.66479]
[1641632420541,4.0,145.9,145.82,27.66479]
[1641632420937,27.66479,145.88,145.82,27.66479]
[1641632421639,31.66479,145.88,145.82,27.66479]
[1641632422938,4.0,145.87,145.79,27.66479]
[1641632423139,27.66479,145.88,145.76,62.5577]
[1641632423339,4.0,145.83,145.76,62.5577]
[1641632423539,10.806,145.83,145.72,65.7624]
[1641632423942,4.0,145.82,145.72,65.7624]
[1641632424141,10.806,145.83,145.72,65.7624]
[1641632424341,10.806,145.83,145.69,129.3868]
[1641632424542,10.806,145.83,145.69,125.3868]
[1641632424744,4.0,145.82,145.69,125.3868]
[1641632424944,31.66479,145.81,145.71,27.66479]
[1641632425345,27.66479,145.81,145.71,27.66479]
[1641632428449,4.0,145.8,145.71,27.66479]
[1641632428647,9.868,145.8,145.71,27.66479]
[1641632428948,4.0,145.75,145.69,27.66479]
[1641632429150,12.213,145.75,145.69,27.66479]
[1641632429751,8.213,145.75,145.69,27.66479]
[1641632430051,8.213,145.75,145.63,66.6543]
[1641632430454,34.52138433,145.78,145.63,66.6543]
[1641632430652,38.52138433,145.78,145.63,73.2783]
[1641632430855,27.66479,145.74,145.66,27.66479]
[1641632431053,27.66479,145.74,145.66,36.42179]
[1641632431252,34.52138433,145.78,145.66,36.42179]
[1641632431553,27.66479,145.78,145.69,4.0]
[1641632431754,14.02,145.83,145.69,10.275]
[1641632431954,62.516,145.82,145.69,10.275]
[1641632432453,62.516,145.82,145.69,17.12807018]
[1641632432654,62.516,145.82,145.7,4.0]
[1641632432854,62.516,145.82,145.73,27.66479]
[1641632433056,62.516,145.82,145.73,34.03679]
[1641632434356,10.02,145.83,145.73,40.88821681]
[1641632434555,31.66479,145.85,145.73,40.88821681]
[1641632434755,27.66479,145.85,145.73,40.88821681]
[1641632434957,27.66479,145.85,145.76,27.66479]
[1641632435159,64.5103,145.86,145.76,35.80179]
[1641632435860,38.02479,145.88,145.76,35.80179]
[1641632436556,78.81144199,145.9,145.76,35.80179]
[1641632436757,14.57744199,145.9,145.79,4.0]
[1641632436959,24.75744199,145.91,145.82,27.66479]
[1641632437156,28.75744199,145.91,145.82,35.75979]
[1641632437556,24.75744199,145.91,145.82,35.75979]
[1641632437957,24.75744199,145.91,145.82,8.095]
[1641632438158,7.15772453,145.9,145.79,6.84861144]
[1641632438360,3.15772453,145.9,145.78,68.162]
[1641632438959,27.66479,145.88,145.79,27.66479]
[1641632439159,27.66479,145.88,145.79,29.34129033]
[1641632439758,27.66479,145.88,145.79,27.66479]
[1641632440661,28.75744199,145.91,145.79,27.66479]
[1641632440863,14.57744199,145.9,145.79,35.33079]
[1641632441363,18.57744199,145.9,145.79,35.33079]
[1641632441764,4.0,145.89,145.79,35.33079]
[1641632441965,17.73685497,145.9,145.79,42.17916693]
[1641632442364,17.73685497,145.9,145.82,4.0]
[1641632442564,14.57744199,145.9,145.83,4.0]
[1641632442765,10.18,145.91,145.83,4.0]
[1641632442963,10.18,145.91,145.84,4.0]
[1641632443165,10.18,145.91,145.87,27.66479]
[1641632443368,14.57744199,145.93,145.87,35.59779]
[1641632443865,18.57744199,145.95,145.87,35.59779]
[1641632444065,4.0,145.94,145.87,7.933]
[1641632444566,14.57744199,145.95,145.87,7.933]
[1641632444567,3.15415412,145.93,145.87,7.933]
[1641632446465,14.57744199,145.94,145.87,7.933]
[1641632446666,78.37814199,145.96,145.87,7.933]
[1641632447069,31.66479,145.95,145.85,27.66479]
[1641632447270,4.0,145.94,145.85,27.66479]
[1641632447469,40.24739667,145.95,145.85,27.66479]
[1641632447668,36.35538246,145.95,145.85,27.66479]
[1641632448069,40.35538246,145.95,145.85,27.66479]
[1641632448271,4.0,145.94,145.85,27.66479]
[1641632448471,34.81538246,145.95,145.85,27.66479]
[1641632448673,3.15059246,145.94,145.85,27.66479]
[1641632448873,7.04296963,145.94,145.85,27.66479]
[1641632449273,3.15059246,145.94,145.85,27.66479]
[1641632449673,3.15059246,145.93,145.85,27.66479]
[1641632450076,3.15059246,145.93,145.85,31.66479]
[1641632450277,14.57744199,145.95,145.89,4.0]
[1641632450575,14.57744199,145.98,145.89,10.864]
[1641632451177,38.79361848,146.02,145.97,27.66479]
[1641632451376,38.79361848,146.02,145.97,36.38279]
[1641632451778,76.63840848,146.06,145.97,36.38279]
[1641632452177,66.45840848,146.06,145.97,36.38279]
[1641632452376,38.79361848,146.06,145.99,4.0]
[1641632452576,3.88965033,146.05,145.97,36.38279]
[1641632452777,58.01379441,146.1,146.01,6.8383082]
[1641632452976,58.01379441,146.1,146.01,14.7453082]
[1641632453177,27.66479,146.12,146.04,27.66479]
[1641632453476,27.66479,146.12,146.04,36.39579]
[1641632453879,3.88856257,146.11,146.04,36.39579]
[1641632458581,7.88856257,146.11,146.04,36.39579]
[1641632458982,4.0,146.1,146.04,36.39579]
[1641632459181,7.88856257,146.1,146.04,36.39579]
[1641632459382,4.0,146.07,146.04,27.66479]
[1641632459581,4.0,146.07,145.98,62.8778]
[1641632459783,6.474,146.07,145.96,4.0]
[1641632460182,3.88856257,146.06,145.96,4.0]
[1641632460986,4.0,146.05,145.95,68.9698]
[1641632461184,4.0,146.05,146.0,27.66479]
[1641632461386,4.0,146.04,146.0,27.66479]
[1641632461586,8.549,146.04,145.97,27.66479]
[1641632461886,12.43756257,146.04,145.97,27.66479]
[1641632462284,8.549,146.04,145.97,27.66479]
[1641632462888,10.474,146.07,145.97,27.66479]
[1641632463685,3.88955497,146.06,145.97,27.66479]
[1641632464489,4.0,146.06,145.97,27.66479]
[1641632464987,3.88955497,146.05,145.97,27.66479]
[1641632465387,4.0,146.0,145.89,6.84392431]
[1641632465686,9.655,146.01,145.89,6.84392431]
[1641632465887,4.0,145.99,145.86,67.8422]
[1641632466087,63.5127,146.0,145.86,67.8422]
[1641632466285,7.89123586,145.98,145.86,67.8422]
[1641632466486,4.0,145.97,145.85,4.0]
[1641632466687,9.45223586,145.98,145.85,4.0]
[1641632466890,5.561,145.98,145.85,4.0]
[1641632467088,5.561,145.98,145.86,4.0]
[1641632467289,5.561,145.98,145.94,27.66479]
[1641632467488,92.19622697,146.04,145.94,27.66479]
[1641632467691,4.0,145.99,145.92,27.66479]
[1641632467891,4.0,146.0,145.92,27.66479]
[1641632468793,4.0,146.01,145.92,27.66479]
[1641632468994,4.0,146.0,145.92,27.66479]
[1641632469496,4.0,145.96,145.92,27.66479]
[1641632469696,6.84697022,145.99,145.92,27.66479]
[1641632470896,10.84697022,145.99,145.92,27.66479]
[1641632471697,6.84697022,145.99,145.92,27.66479]
[1641632472800,11.66100029,145.99,145.92,27.66479]
[1641632473299,15.66100029,145.99,145.92,27.66479]
[1641632473500,11.66100029,145.99,145.92,27.66479]
[1641632474600,4.81403007,145.99,145.92,27.66479]
[1641632474801,4.81403007,145.98,145.92,27.66479]
[1641632475201,4.81403007,145.98,145.97,27.66479]
[1641632475420,4.81403007,145.98,145.97,33.60179]
[1641632475801,4.81403007,146.03,145.97,33.60179]
[1641632476703,77.61835595,146.06,145.97,33.60179]
[1641632476704,4.81403007,146.02,145.97,33.60179]
[1641632479711,4.81403007,146.02,145.97,27.66479]
[1641632480109,4.81403007,146.01,145.97,27.66479]
[1641632481110,4.81403007,146.0,145.97,27.66479]
[1641632481913,4.81403007,146.02,145.97,27.66479]
[1641632483114,4.81403007,146.02,145.97,19.88691549]
[1641632484015,14.49944033,146.05,145.97,19.88691549]
[1641632484415,14.49944033,146.05,145.97,25.82691549]
[1641632485116,42.16423033,146.09,145.97,29.82691549]
[1641632485516,42.16423033,146.09,146.03,27.66479]
[1641632487118,46.16423033,146.09,146.03,27.66479]
[1641632487318,4.0,146.07,146.03,27.66479]
[1641632487718,10.792,146.07,146.03,27.66479]
[1641632487918,10.792,146.07,145.97,19.88691549]
[1641632488118,4.0,146.06,145.97,19.88691549]
[1641632488319,10.792,146.07,145.97,19.88691549]
[1641632488622,25.29144033,146.07,145.97,19.88691549]
[1641632488918,21.29144033,146.07,145.97,19.88691549]
[1641632489520,14.49944033,146.06,145.97,19.88691549]
[1641632490318,14.49944033,146.07,145.97,19.88691549]
[1641632490918,14.49944033,146.07,145.97,28.44391549]
[1641632491119,14.49944033,146.06,145.97,32.44391549]
[1641632491322,14.49944033,146.06,145.97,28.44391549]
[1641632491721,42.16423033,146.06,145.97,28.44391549]
[1641632491920,14.49944033,146.06,145.97,28.44391549]
[1641632492420,14.49944033,146.07,145.97,28.44391549]
[1641632493221,17.65036064,146.08,145.97,39.2840947]
[1641632493420,17.65036064,146.08,145.97,35.2840947]
[1641632493622,17.65036064,146.08,146.0,27.66479]
[1641632494122,3.15092031,146.08,146.0,27.66479]
[1641632495922,3.15092031,146.08,146.0,33.47179]